Cogmind - Beta 11 @@@ ROGUE MODE // 2022.03.28 @ 03:52:34 Player: woegarden Result: Destroyed by D-53 Grenadier with Mini Grenade Launcher Performance ------------- Evolutions (0) 0 Regions Visited (2) 400 Robots Destroyed (20) 100 Value Destroyed (344) 344 Prototype IDs (0) 0 Alien Tech Used (0) 0 Bonus (-12) -12 TOTAL SCORE: 832 Bonus ------- Friendly Fire -12 Cogmind --------- Core Integrity 0/250 Matter 300/300 Energy 83/100 System Corruption 0% Temperature Cool (0) Movement Rolling (80) Location -10/Mines Parts ------- > --- POWER (1) -------- (None) > --- PROPULSION (2) --- Wheel > --- UTILITY (2) ------ Medium Storage Unit Weight Redist. System > --- WEAPON (2) ------- (None) > --- INVENTORY (10) --- Light Ion Engine Light Treads Compact Wheel Compact Wheel Compact Wheel Large Storage Unit Small Laser Mining Laser Peak State ------------ > --- POWER ------------ Light Ion Engine > --- PROPULSION ------- Aluminum Leg Aluminum Leg > --- UTILITY ---------- Medium Storage Unit Improved Terrain Scanner > --- WEAPON ----------- Medium Laser Light Assault Rifle > --- INVENTORY -------- Light Ion Engine Light Treads Wheel Wheel Compact Wheel Compact Wheel Large Storage Unit Weight Redist. System Small Laser Mining Laser [Rating: 10] Favorites ----------- Power Light Ion Engine Engine Light Ion Engine Power Core Light Nuclear Core Propulsion Aluminum Leg Leg Aluminum Leg Wheel Wheel Utility Medium Storage Unit Device Improved Terrain Scanner Storage Medium Storage Unit Weapon Medium Laser Energy Gun Medium Laser Ballistic Gun Light Assault Rifle Build | -11 -10 -10 ------- Run | Scr Mat Min Slots Evolved . | . . . Power . | . . . Propulsion . | . . . Utility . | . . . Weapon . | . . . Parts Attached 9 | 2 1 6 Power 2 | 1 . 1 Engine 1 | 1 . . Core 1 | . . 1 Reactor . | . . . Propulsion 3 | . . 3 Treads . | . . . Leg . | . . . Wheel 3 | . . 3 Hover . | . . . Flight . | . . . Utility 3 | 1 1 1 Device 2 | 1 . 1 Storage 1 | . 1 . Processor . | . . . Hackware . | . . . Protection . | . . . Artifact . | . . . Weapon 1 | . . 1 Energy Gun . | . . . Energy Cannon . | . . . Ballistic Gun 1 | . . 1 Ballistic Cannon . | . . . Launcher . | . . . Special Weapon . | . . . Impact Weapon . | . . . Slashing Weapon . | . . . Piercing Weapon . | . . . Special Melee Weapon . | . . . Unidentified Prototypes . | . . . Parts Lost 8 | . . 8 Power 2 | . . 2 Propulsion 2 | . . 2 Utility 1 | . . 1 Weapon 3 | . . 3 Highest Loss Streak 5 | . . 5 To Critical Strikes . | . . . Average Slot Usage (%) 95 | . 100 91 Engine 13 | . 14 12 Leg 15 | . 28 5 Wheel 11 | . . 20 Device 12 | . 14 11 Storage 14 | . 14 14 Energy Gun 13 | . 14 13 Ballistic Gun 12 | . 14 11 Naked Turns . | . . . Heaviest Build 18 | 14 17 18 Greatest Support 26 | 20 20 26 Greatest Overweight (x) . | . . . Average Overweight (x) . | . . . Largest Inventory Capacity 10 | 8 10 10 Average Capacity 9 | 8 8 10 Most Carried 10 | 8 10 10 Average Carried 8 | 7 8 9 Final Capacity 10 | 8 10 10 Final Carried 10 | 8 10 8 Class Distribution -------------------- 88% | Mutant 11% | Scavenger-Mutant Dominant Class ---------------- Mutant | -10/Materials Mutant | -10/Mines Resources | -11 -10 -10 ----------- Run | Scr Mat Min Matter Collected 346 | 221 . 125 Remotely . | . . . Salvage Created 727 | 127 203 397 Parts 36 | 12 8 16 Haulers Intercepted 1 | . 1 . Recyclers Shooed 4 | . 1 3 Parts Field Recycled . | . . . Retrieved Matter . | . . . Parts Self-Destructed . | . . . Prevented . | . . . Kills | -11 -10 -10 ------- Run | Scr Mat Min Combat Hostiles Destroyed 10 | . 3 7 Guns 10 | . 3 7 Classes Destroyed 6 | 2 3 1 Worker 2 | . 1 1 Tunneler 4 | 3 . 1 Hauler 1 | . 1 . Recycler 3 | 1 . 2 Swarmer 3 | . . 3 Grunt 7 | . 3 4 Best Kill Streak 5 | 1 2 5 Combat Bots Only 5 | . 2 5 Max Kills in Single Turn 1 | 1 1 1 Gunslinging . | . . . Exploded . | . . . Melee . | . . . Uniques/NPCs Destroyed . | . . . Combat | -11 -10 -10 -------- Run | Scr Mat Min Damage Taken 893 | . 177 716 Core 283 | . 42 241 Absorbed by Shields . | . . . Core Remaining (%) 100 | 100 . . Volleys Fired 86 | 16 30 40 Largest 2 | 2 2 2 Hottest 70 | 70 70 70 Shots Fired 160 | 32 60 68 Gun 160 | 32 60 68 Cannon . | . . . Launcher . | . . . Special . | . . . Kinetic 74 | 16 30 28 Thermal 86 | 16 30 40 Explosive . | . . . Electromagnetic . | . . . Robot Hit Streak 11 | 4 5 11 Robot Miss Streak 5 | 2 5 4 Penetration Max . | . . . Secondary Targets 1 | . . 1 Max Gunslinging Chain 1 | . . 1 Shots Hit Robots 97 | 20 33 44 Core Hits 43 | 8 11 24 Critical Kills . | . . . Critical Parts Destroyed . | . . . Critical Strikes 4 | . 1 3 Burn 4 | . 1 3 Melee Attacks . | . . . Impact . | . . . Slashing . | . . . Piercing . | . . . Sneak Attacks . | . . . Combat Hostiles . | . . . Follow-up Attacks . | . . . Damage Inflicted 1035 | 215 341 479 Guns 1035 | 215 341 479 Cannons . | . . . Explosions . | . . . Melee . | . . . Ramming . | . . . Kinetic 362 | 89 118 155 Thermal 673 | 126 223 324 Explosive . | . . . Electromagnetic . | . . . Impact . | . . . Slashing . | . . . Piercing . | . . . Highest Corruption . | . . . Average Corruption . | . . . Corruption Purged . | . . . Corruption Blocked . | . . . Overload Shots . | . . . Overflow Damage . | . . . Projectiles . | . . . Explosions . | . . . Melee . | . . . Knockbacks . | . . . Impact . | . . . Kinetic . | . . . Secondary . | . . . Self-Inflicted Damage . | . . . Shots . | . . . Rammed . | . . . Targets Rammed . | . . . Kicked . | . . . Crushed . | . . . Highest Temperature 184 | 100 130 184 Average Temperature 51 | 39 47 59 Received Heat Transfer 270 | . 96 174 Siege Activations . | . . . Robots Corrupted . | . . . Combat Hostiles . | . . . Parts Fried . | . . . Impact Corruptions . | . . . Robots Melted . | . . . Combat Hostiles . | . . . Parts Melted 5 | 1 1 3 Heat Transferred 2294 | 370 740 1184 Parts Sabotaged . | . . . Parts Stolen . | . . . Parts Stripped . | . . . Power Chain Reactions . | . . . Missiles Intercepted . | . . . Alert | -11 -10 -10 ------- Run | Scr Mat Min Peak Influence 263 | 20 150 263 Initial 58 | . 13 58 Average 116 | 11 99 171 Maximum Alert Level 1 | . . 1 Low Security (%) 79 | 100 100 54 Level 1 20 | . . 45 Level 2 . | . . . Level 3 . | . . . Level 4 . | . . . Level 5 . | . . . High Security . | . . . Max Security . | . . . Squads Dispatched 3 | . 3 . Investigation . | . . . Extermination . | . . . Reinforcement 3 | . 3 . Assault . | . . . Garrison . | . . . Intercept . | . . . Searches Triggered . | . . . Construction Impeded . | . . . Haulers Reinforced . | . . . Active Scanning Responses . | . . . Cargo Convoy Interrupts . | . . . Stealth | -11 -10 -10 --------- Run | Scr Mat Min Distress Signals 1 | . 1 . Communications Jammed . | . . . Distress Signals . | . . . Times Spotted 34 | . 11 23 Peak Tracking Total 12 | . 3 12 Tactical Retreats 2 | . . 2 Traps | -11 -10 -10 ------- Run | Scr Mat Min Traps Triggered . | . . . Indirectly . | . . . Trap Hack Attempts . | . . . Triggered . | . . . Disarmed . | . . . Reprogrammed . | . . . Reused . | . . . Traps Extracted . | . . . Installed . | . . . Triggered . | . . . Machines | -11 -10 -10 ---------- Run | Scr Mat Min Machines Disabled . | . . . Max in Single Turn . | . . . Machines Sabotaged . | . . . Garrisons Compromised . | . . . Overloaded Fab Kills . | . . . Hacking | -11 -10 -10 --------- Run | Scr Mat Min Machines Accessed . | . . . Terminals . | . . . Fabricators . | . . . Repair Stations . | . . . Recycling Units . | . . . Scanalyzers . | . . . Garrison Access . | . . . Total Hacks . | . . . Successful . | . . . Failed . | . . . Catastrophic . | . . . Database Lockouts . | . . . Manual . | . . . Terminals . | . . . Fabricators . | . . . Repair Stations . | . . . Recycling Units . | . . . Scanalyzers . | . . . Garrison Access . | . . . Terminal Hacks . | . . . Fabricator Hacks . | . . . Repair Station Hacks . | . . . Recycling Unit Hacks . | . . . Scanalyzer . | . . . Garrison Access Hacks . | . . . Unauthorized Hacks . | . . . Terminals . | . . . Fabricators . | . . . Repair Stations . | . . . Recycling Units . | . . . Scanalyzers . | . . . Garrison Access . | . . . Data Cores Recovered . | . . . Used . | . . . Hacking Detections . | . . . Full Trace Events . | . . . Feedback Events . | . . . Feedback Blocked . | . . . Robot Schematics Acquired . | . . . Robots Built . | . . . Authchips . | . . . Time . | . . . Total Robot Build Rating . | . . . Part Schematics Acquired . | . . . Parts Built . | . . . Authchips . | . . . Time . | . . . Total Part Build Rating . | . . . Parts Repaired . | . . . Time . | . . . Parts Recycled . | . . . Recycled Matter . | . . . Retrieved Matter . | . . . Retrieved Components . | . . . Parts Scanalyzed . | . . . Part Schematics Acquired . | . . . Parts Damaged . | . . . Bothacking | -11 -10 -10 ------------ Run | Scr Mat Min Used RIF Installer . | . . . Robots Hacked . | . . . Non-combat . | . . . Combat . | . . . Robot Hacks Applied . | . . . Relay Couplers Released . | . . . Fabnet Peak Effective % . | . . . Robots Rewired . | . . . Allies Hacked . | . . . Hacks Repelled . | . . . Allies | -11 -10 -10 -------- Run | Scr Mat Min Total Allies . | . . . Largest Group . | . . . Highest-Rated Group . | . . . Highest-Rated Ally . | . . . Total Orders . | . . . Ally Attacks . | . . . Total Damage . | . . . Kills . | . . . Allies Corrupted . | . . . Allies Melted . | . . . Intel | -11 -10 -10 ------- Run | Scr Mat Min Robot Analysis Total . | . . . Derelict Logs Recovered 1 | . . 1 Drone Launches . | . . . Drone Recoveries . | . . . Exploration | -11 -10 -10 ------------- Run | Scr Mat Min Turns Passed 647 | 116 239 292 Spaces Moved 384 | 52 122 210 Core . | . . . Treads . | . . . Legs 198 | 52 122 24 Wheels 186 | . . 186 Hover . | . . . Flight . | . . . Fastest Speed 80 | 120 120 80 Average Speed 100 | 120 120 84 Slowest Speed 120 | 120 120 120 Overloaded Moves . | . . . Propulsion Burnouts . | . . . Robots Hopped . | . . . Cave-ins Triggered . | . . . Exploration Rate (%) 26 | 4 37 39 Regions Visited 2 Branch Regions 1 Pre-discovered Areas . | . . . Known Exits Taken . | . . . Unknown Exits Taken 2 | 1 1 . Scrap Searched 1 | . . 1 Spaces Dug . | . . . Terrain Destroyed . | . . . Melee . | . . . Projectile . | . . . AOE . | . . . Terrain Rammed . | . . . Walls Destroyed . | . . . Machines Disabled . | . . . Actions | -11 -10 -10 --------- Run | Scr Mat Min Total 499 | 77 161 261 Wait 6 | . 6 . Move 382 | 51 121 210 Hop . | . . . Pick Up 10 | 5 2 3 Fast Attach 2 | 1 . 1 Attach 3 | . . 3 Detach . | . . . Swap 4 | 1 1 2 Drop 6 | 3 1 2 Fire 86 | 16 30 40 Melee . | . . . Ram . | . . . Kick . | . . . Crush . | . . . Escape Stasis . | . . . Rewire . | . . . Trap . | . . . Miscellaneous . | . . . Route ------- -11/Scrapyard -10/Materials -10/Mines History --------- Turn | Location | Event 7 | -11/Scrapyard | Discovered new exit (range 3) 117 | -11/Scrapyard | Entered Materials 306 | -10/Materials | Discovered new exit (range 12) 311 | -10/Materials | Build established: Mutant 356 | -10/Materials | Entered Mines 590 | -10/Mines | Assembled infested the area 595 | -10/Mines | Assisted by a Guerilla fighting off Assembled 633 | -10/Mines | Core integrity fell below 50% 635 | -10/Mines | Core integrity fell below 20% 648 | -10/Mines | Destroyed by D-53 Grenadier with Mini Grenade Launcher Last Messages --------------- 00598_ as-19952 suffers critical hit (Destroy). 00598_ as-19952 destroyed. 00609_ HV Slug penetrates Wall. 00610_ 76-I1X(h) destroyed. 00614_ Lgt. Ion Engine destroyed. 00623_ Lgt. Nuclear Core destroyed. 00631_ K-01 Serf destroyed. 00632_ C-30 ARC bursts open, deploying its payload. 00632_ D-53 Grenadier unfolds itself. 00632_ as-56140 destroyed. 00632_ Lgt. Assault Rifle destroyed. 00632_ Wheel destroyed. 00632_ Med. Laser destroyed. 00634_ as-47641 destroyed. 00635_ as-23863 destroyed. 00635_ as-78538 destroyed. 00635_ as-89087 destroyed. 00636_ as-82339 destroyed. 00636_ as-14953 destroyed. 00636_ as-60625 destroyed. Map ----- +----------------------------------------------------+ | ???????????# ##?# ##????????????????????????? | | ???????????# #### ##???????????????????????? | | ???????????# ## #???????????????????????? | | ???????????## ##??????????????????????? | | ????????????### =! #??????????????????????? | | ??????????????## !%] #??????????????????????? | | ???????????????## ### ##??????????????????????? | | ????????????????# #?## ##???????????????????????? | | ????????????????# #??# =#????????????????????????? | | ????????????????# #### %#????????????????????????? | | ????????????????# #????????????????????????? | | ?????????????#### %## ##????????? ????????????? | | ????????###### # ##????????" ????????????? | | ????????# # #????????" ????""?????#? | | ???????## * #????????" ??? """?????? | | ???????# #???????? ?????? | | ???????# #?????""" """ """ ????? | | ???????# % ### #??????"" """ """?????? | | ???????# % #??????# ##???????" """ ""??????? | | ???????## #####???###???????? ??? ???? | | ????????### #??????????????? ????????? | | ??????????## ###### #?####??????????# #?????????? | | ?????####### #????# ### #?????###### #????###### | | ?????#=%* #???##d## #?????# #???## | | ?????#%#######??## d #######k#### #####!% ## | | ?????#[#????????# @ #??# #? | | ?????#=#???????# #### #####??# ##### * ## | | ######%#####???# #####??# #??????# #???## # | | #???# #??????# #??????# #????## | | #???## ##??????# #??????# #?????# | | #????####??????? #??????# ? | | """*""" #???????????????###??????# # | | """%""" #????????????????????????######### # | | """ """ #????????????????????????????????# # | | #????????????????????????????????## | | """ """ #?????????????????????????????????## | | """ """ #??????????????????????????????????# | | """ """ #??????????????????????????????????# | | ??????????????????????????????????## | | ##???????????????????????????????????# | | #?#########??????????????????????????????????????# | | ?????????????????????????????????????????????????? | | | | | | | | | | | | | | | | | +----------------------------------------------------+ Best States ------------- Heat Dissipation 25 Energy Generation 14 Energy Capacity 250 Matter Stores 300 Matter Capacity 300 Sight Range 16 Terrain Scan Range 16 Terrain Scan Density 10 Additional Mass Support 6 Evasion (%) 55 Item Schematics ----------------- None Robot Schematics ------------------ None Fabricated ------------ Nothing Alien Tech Used ----------------- None Achievements -------------- None Challenges ------------ None Game ------ Seed TransportDecoyInitializer Manual? 0 Play Time 00:10:42 Cumulative 77.6 hours Start 2022.03.28 @ 03:44:59 End 2022.03.28 @ 03:52:34 Sessions 1 Manual Loads 0 Difficulty Rogue Special Mode None Game No. 115 Rogue 69 Adventurer 45 Explorer 1 Win Type - Total 0 Types 0/0/0/0/0/0/0/0/0 Lore% 25 Gallery% 45 Achievement% 32 Wizard Run 0 Options --------- ASCII 0 Keyboard 0 Movement Mouse Keybinds 0 Fullscreen 2 Font 18/X11Bold Map View 76x50 Tactical HUD 1 Map Filters NONE Filters LOW_CONTRAST(13,24,33)|BRIGHTNESS(90)|SATURATION(87) Steam 1 RUN: acd31bb0-02a2-4cf2-b4fb-8901260feb31